[Event "Croatian 1A League 2022"]
[Site "Porec"]
[Date "2022.09.29"]
[Round "6.4"]
[White "Antunac, Goran"]
[Black "Kuljasevic, Davorin"]
[Result "0-1"]
[ECO "E11"]
[WhiteElo "2337"]
[BlackElo "2560"]
[Annotator "TA"]
[PlyCount "80"]
[EventDate "2022.09.24"]
[EventType "team-tourn"]
[EventCountry "CRO"]
[SourceTitle "playchess.com"]
[Source "ChessBase"]
[SourceQuality "1"]
[TimeControl "40/5400+30:1800+30"]

{[%evp 12,80,9,9,16,8,11,6,9,1,10,-46,-17,-44,-37,-90,-56,-47,-52,-80,-77,-82,-70,-116,-67,-56,308,312,300,304,300,304,315,300,312,302,301,302,309,311,310,314,304,304,308,283,279,235,235,229,221,227,226,234,232,222,227,0,0,0,0,-2091,-2050,-1967,-1952,-1790,-1728,-29992,-29993,-29993,-29992]} 1. d4 {[%emt 0:01:32]} Nf6 {[%emt 0:00:09]} 2. Nf3 {[%emt 0:00:02]} d5 {[%emt 0:00:11]} 3. c4 {[%emt 0:00:14]} e6 {[%emt 0:00:09]} 4. g3 {[%emt 0:00:22]} Bb4+ {[%emt 0:00:16]} 5. Bd2 {[%emt 0:01:52]} a5 {[%emt 0:00:31]} 6. Bg2 {[%emt 0:09:47]} O-O {[%emt 0:00:49]} 7. O-O {[%emt 0:03:38] 7.Qc2 is the hot move.} dxc4 {[%emt 0:01:23] E11: Bogo-Indian.} 8. Qc2 {[%emt 0:12:14]} Bxd2 {[%emt 0:03:49]} 9. Nbxd2 {[%emt 0:00:35]} b5 $1 {[%emt 0:00:28] The position is equal.} 10. a4 {[%emt 0:02:19]} c6 {[%emt 0:00:41]} 11. e4 {[%emt 0:02:46]} (11. Rfd1 $11) 11... Na6 $15 {[%emt 0:03:42]} 12. Rfd1 {[%emt 0:06:51]} Nb4 {[%emt 0:01:15]} 13. Qb1 {[%emt 0:04:09] [#]} (13. Qc3 $15) 13... Ba6 $146 {[%emt 0:11:32]} ({Predecessor:} 13... h6 14. h3 Ba6 15. Bf1 Qb6 16. Be2 Rfd8 17. axb5 cxb5 18. Nf1 Bb7 19. e5 Be4 {0-1 (35) Gardarsson,H (1943)-Brunello,S (2482) Helsingor 2008}) 14. Bf1 {[%emt 0:02:24]} h6 {[%emt 0:05:04]} 15. Be2 {[%emt 0:04:52]} Qb6 {[%emt 0:08:18][%cal Oe6e5] Black is more active.} 16. e5 {[%emt 0:12:54]} Nd7 {[%emt 0:00:49]} 17. Ne4 {[%emt 0:02:49]} ({Better is} 17. Qc1 $15) 17... Rfd8 {[%emt 0:06:29]} ({Black should try} 17... bxa4 $17 18. Qc1 Nd3 19. Bxd3 cxd3 20. Rxa4 Rab8) 18. Nd6 {[%emt 0:01:12][%cal Od6f7]} c5 $2 {[%emt 0:13:07][%mdl 8192] [#]} (18... bxa4 $15 {stays ahead.} 19. Nxc4 Qb8) 19. Nxf7 $1 $18 {[%emt 0:05:10][%mdl 512]} Nd3 {[%emt 0:15:04]} ({Not} 19... Kxf7 20. Qh7 Rg8 21. dxc5 $16) 20. Nxd8 {[%emt 0:00:58]} Rxd8 {[%emt 0:00:38]} 21. Bxd3 {[%emt 0:01:17]} cxd3 {[%emt 0:00:06]} 22. Qxd3 {[%emt 0:00:30]} c4 {[%emt 0:02:07]} 23. Qe3 {[%emt 0:01:02]} Bb7 {[%emt 0:00:31]} 24. axb5 {[%emt 0:02:12]} Qxb5 {[%emt 0:00:02]} 25. Nd2 {[%emt 0:02:36]} Nb6 {[%emt 0:01:11]} 26. Qc3 {[%emt 0:03:56]} a4 {[%emt 0:01:25]} 27. f3 {[%emt 0:01:43]} Rf8 {[%emt 0:02:58]} 28. Rf1 {[%emt 0:02:11]} Nd5 {[%emt 0:01:37]} 29. Qa3 {[%emt 0:00:10]} Qb6 {[%emt 0:05:26]} 30. Qc5 {[%emt 0:01:42]} ({Weaker is} 30. Qxa4 Qxb2 31. Ra2 (31. Nxc4 Qxd4+ 32. Kg2 Qxc4 $17) 31... Qxd4+ 32. Rf2 Nc3 $14) 30... Qxb2 {[%emt 0:00:09]} 31. Nxc4 {[%emt 0:00:58]} Qe2 {[%emt 0:01:59]} 32. Rf2 {[%emt 0:01:48]} Qd3 {[%emt 0:00:04] And now ...Nc3 would win.} 33. Nb2 {[%emt 0:00:31]} Qe3 {[%emt 0:00:31] [#]} 34. Ra3 $2 {[%emt 0:06:59]} (34. Qc1 $1 $18) 34... Qe1+ $11 {[%emt 0:00:10]} 35. Rf1 {[%emt 0:00:02]} Qe2 $40 {[%emt 0:00:26][%mdl 128] aiming for ...Ne3. Black is up to no good. Really sharp!} 36. Nd1 {[%emt 0:01:32][%mdl 8192] Prevents Ne3.} (36. Rf2 $11 Qe1+ 37. Rf1) 36... Ba6 $19 {[%emt 0:00:37][%csl Ga6][%cal Re2f1]} 37. Rf2 {[%emt 0:00:38]} Qxd1+ {[%emt 0:00:07]} 38. Kg2 {[%emt 0:00:00]} Bd3 {[%emt 0:02:40]} 39. h4 {[%emt 0:01:10]} Ne3+ {[%emt 0:00:30]} 40. Kh2 {[%emt 0:00:00]} Ng4+ {[%emt 0:00:30] Weighted Error Value: White=0.53/Black=0.21 (precise)} 0-1

[Event "Croatian 1A League 2022"]
[Site "Porec"]
[Date "2022.09.29"]
[Round "6.5"]
[White "Jovanic, Ognjen"]
[Black "Fucak, Emilio Milko"]
[Result "0-1"]
[ECO "E12"]
[WhiteElo "2507"]
[BlackElo "2187"]
[Annotator "TA"]
[PlyCount "104"]
[EventDate "2022.09.24"]
[EventType "team-tourn"]
[EventCountry "CRO"]
[SourceTitle "playchess.com"]
[Source "ChessBase"]
[SourceQuality "1"]
[TimeControl "40/5400+30:1800+30"]

{[%evp 9,104,4,39,37,46,17,33,0,32,20,39,35,32,35,16,23,28,30,52,0,16,0,95,86,85,75,97,80,89,94,150,148,135,139,152,133,139,135,163,122,129,107,118,124,127,123,122,117,125,83,79,76,71,54,54,54,132,135,144,121,116,121,161,156,205,201,191,223,172,213,174,227,667,0,0,0,0,0,0,0,7,0,0,0,0,0,0,-12839,-12839,-12840,-12840,-12841,-12841,-12841,-12842,-12843,-12843]} 1. d4 {[%emt 0:00:27]} Nf6 {[%emt 0:00:05]} 2. c4 {[%emt 0:00:08]} e6 {[%emt 0:00:03]} 3. Nf3 {[%emt 0:00:09]} b6 {[%emt 0:00:09]} 4. Bf4 {[%emt 0:00:20]} Bb7 {[%emt 0:00:51]} 5. e3 {[%emt 0:00:27]} d6 {[%emt 0:00:52]} 6. Nc3 {[%emt 0:02:09] E12: Queen's Indian: Unusual White 4th moves, 4 a3, 4 Nc3 Bb7 5 a3 and 4 Nc3 Bb7 .} Nbd7 {[%emt 0:00:33]} 7. Be2 {[%emt 0:02:01]} Nh5 {[%emt 0:06:32]} 8. Bg3 {[%emt 0:03:37] White is slightly better.} Be7 {[%emt 0:04:49]} 9. Qc2 {[%emt 0:01:16]} Bf6 {[%emt 0:02:20]} 10. O-O-O {[%emt 0:03:13]} h6 {[%emt 0:08:30]} 11. Kb1 {[%emt 0:04:19][%cal Og3d6]} a6 {[%emt 0:05:24] [#]} 12. Ne4 $146 {[%emt 0:04:01][%cal Og3d6]} ({Predecessor:} 12. Ne1 Nxg3 13. hxg3 Qe7 14. Bf3 O-O-O 15. Bxb7+ Kxb7 16. Nd3 c5 17. Nf4 cxd4 18. exd4 {0-1 (47) Injac,T (2257)-Osmak,I (2409) Batumi 2019}) 12... Nxg3 {[%emt 0:02:00]} 13. hxg3 {[%emt 0:00:27]} Qe7 {[%emt 0:00:53]} 14. Rd2 {[%emt 0:09:41]} ({But not} 14. Nxf6+ Nxf6 15. Rh4 O-O-O $11) (14. Nfd2 $14) 14... O-O-O {[%emt 0:11:33]} 15. Rhd1 {[%emt 0:09:21]} d5 {[%emt 0:05:06]} (15... Kb8 $11) 16. cxd5 {[%emt 0:08:21]} exd5 {[%emt 0:00:19] [#]} 17. Rc1 $1 {[%emt 0:09:41][%csl Gc1][%cal Rc2c7]} c6 {[%emt 0:01:38]} (17... Qxe4 $2 18. Bd3 Qxd3 19. Rxd3 $18) (17... c5 18. Nxf6) 18. Nxf6 {[%emt 0:02:29]} Qxf6 {[%emt 0:08:39]} 19. Qa4 {[%emt 0:03:06]} b5 {[%emt 0:00:00]} (19... Kc7 $142) 20. Qa5 $16 {[%emt 0:00:10]} Kb8 {[%emt 0:00:00]} 21. Rdc2 {[%emt 0:00:57]} Rc8 {[%emt 0:13:07]} 22. Ne1 {[%emt 0:04:28]} Qd8 {[%emt 0:03:43]} (22... Qxf2 $2 23. Bg4 Qxg3 24. Bxd7 $18) 23. Qd2 {[%emt 0:01:48]} g6 {[%emt 0:01:02]} 24. Nd3 {[%emt 0:00:33][%cal Oa2a4]} a5 {[%emt 0:01:53]} 25. f4 {[%emt 0:08:34]} h5 {[%emt 0:06:06]} 26. g4 {[%emt 0:01:38]} hxg4 {[%emt 0:00:11]} 27. Bxg4 {[%emt 0:00:01]} f5 {[%emt 0:00:02]} 28. Bf3 {[%emt 0:00:39]} Qb6 {[%emt 0:00:42]} 29. b4 {[%emt 0:05:26]} a4 {[%emt 0:02:21]} 30. Ne5 {[%emt 0:03:27]} Nxe5 {[%emt 0:00:14]} 31. fxe5 {[%emt 0:00:02]} Rh4 {[%emt 0:06:58]} 32. Qf2 {[%emt 0:02:05]} g5 {[%emt 0:02:17]} (32... Qd8 $14) 33. g3 {[%emt 0:04:03]} Rh7 {[%emt 0:01:08]} 34. Be2 {[%emt 0:00:22]} Rf8 {[%emt 0:00:13]} 35. Bd3 {[%emt 0:00:08] [#] Strongly threatening g4.} Rhf7 {[%emt 0:01:15]} 36. Rf1 {[%emt 0:04:01]} f4 {[%emt 0:02:12]} (36... Qc7 $16 {might work better.} 37. Qe1 (37. Bxb5 f4 $16) 37... Qd7) 37. gxf4 $18 {[%emt 0:00:14]} gxf4 {[%emt 0:01:00]} 38. exf4 {[%emt 0:00:13]} Rxf4 {[%emt 0:00:23]} 39. Qxf4 {[%emt 0:00:15]} Rxf4 {[%emt 0:00:02]} 40. Rxf4 {[%emt 0:00:00]} Qd8 $2 {[%emt 0:00:00]} (40... Bc8 41. a3 Be6) 41. a3 $2 {[%emt 0:13:15]} (41. Re2 $18) 41... Qg5 $11 {[%emt 0:02:56]} 42. Rcf2 {[%emt 0:01:03] Rf8+ is the strong threat.} Bc8 {[%emt 0:01:58]} 43. Kc2 {[%emt 0:01:02] Black must now prevent Rf8.} Be6 {[%emt 0:03:47]} 44. Rf6 {[%emt 0:03:02]} Qg4 {[%emt 0:00:26]} 45. Rf1 {[%emt 0:01:45]} Kb7 {[%emt 0:09:37]} 46. Rg6 {[%emt 0:01:05]} Qh3 {[%emt 0:00:33]} 47. Kc3 {[%emt 0:04:01]} Bg4 {[%emt 0:03:03] Hoping for ...Be2. Dancing on a razor blade.} 48. Rff6 $2 {[%emt 0:04:00][%mdl 8192]} (48. Rf7+ $11 Kb6 49. Rg8) 48... Be2 $1 $19 {[%emt 0:00:19] Black is clearly winning.} 49. Rxc6 {[%emt 0:05:16]} Qxd3+ {[%emt 0:00:18]} 50. Kb2 {[%emt 0:00:04]} Qxd4+ {[%emt 0:02:13]} 51. Rc3 {[%emt 0:00:40]} Qxe5 {[%emt 0:00:45]} 52. Rg2 {[%emt 0:02:12]} Bc4 {[%emt 0:02:48] A wild game.  Weighted Error Value: White=0.26 (precise) /Black=0.24 (precise)} 0-1

[Event "Croatian 1A League 2022"]
[Site "Porec"]
[Date "2022.09.29"]
[Round "6.6"]
[White "Medancic, Rikard"]
[Black "Srbis, Jurica"]
[Result "0-1"]
[ECO "A45"]
[WhiteElo "2120"]
[BlackElo "2442"]
[Annotator "TA"]
[PlyCount "96"]
[EventDate "2022.09.24"]
[EventType "team-tourn"]
[EventCountry "CRO"]
[SourceTitle "playchess.com"]
[Source "ChessBase"]
[SourceQuality "1"]
[TimeControl "40/5400+30:1800+30"]

{[%evp 9,96,20,20,-4,-17,-45,-24,-56,-50,-63,-55,-62,-47,-38,-23,-29,-29,-30,-29,-80,-68,-58,-66,-104,-120,-110,-110,-113,-104,-131,-121,-122,-116,-118,-133,-137,-120,-119,-128,-143,-142,-145,-139,-147,-145,-158,-162,-164,-153,-178,-138,-269,-257,-304,-182,-179,-176,-433,-437,-480,-480,-454,-469,-1182,-435,-427,-390,-383,-303,-731,-699,-718,-700,-1001,-993,-1048,-785,-927,-914,-966,-692,-977,-687,-1192,-1190,-29965,-6195,-2588,-1793]} 1. d4 {[%emt 0:00:40]} Nf6 {[%emt 0:00:06]} 2. Bf4 {[%emt 0:01:10]} g6 {[%emt 0:00:32]} 3. Nc3 {[%emt 0:00:34]} d5 {[%emt 0:01:01]} 4. Qd2 {[%emt 0:03:51]} c6 {[%emt 0:06:19]} 5. f3 {[%emt 0:08:01]} b5 {[%emt 0:02:57][%cal Bb7b5,Bb5b4][%mdl 32]} 6. e3 {[%emt 0:11:45] A45: Trompowsky Attack.} Bg7 {[%emt 0:02:51] [#]} 7. Bd3 $146 {[%emt 0:00:23]} ({Predecessor:} 7. g4 a5 8. h4 h5 9. g5 Nfd7 10. O-O-O a4 11. e4 b4 12. Nce2 Qb6 13. Qe3 {0-1 (32) Szczurek,K (2112)-Kiolbasa,O (2244) Suwalki 2019}) 7... Nbd7 {[%emt 0:07:34]} 8. a4 {[%emt 0:09:45] Black has an edge.} b4 {[%emt 0:01:49]} 9. Nd1 {[%emt 0:00:36]} a5 {[%emt 0:02:11]} 10. Ne2 {[%emt 0:02:25]} Qb6 {[%emt 0:03:33]} 11. c4 {[%emt 0:13:51]} bxc3 {[%emt 0:09:03]} 12. bxc3 {[%emt 0:03:21]} O-O {[%emt 0:00:36]} 13. Rb1 {[%emt 0:02:03]} Qa7 {[%emt 0:03:56]} 14. e4 {[%emt 0:02:58] [#]} (14. Nf2 $11 {remains equal.}) 14... dxe4 $1 $17 {[%emt 0:01:40]} 15. fxe4 {[%emt 0:00:41]} e5 {[%emt 0:00:32]} 16. dxe5 {[%emt 0:02:05] White is on the road to losing.} ({Don't blunder} 16. Bxe5 $2 Nxe5 17. dxe5 Ng4 $19) 16... Ng4 {[%emt 0:00:35]} 17. Nd4 {[%emt 0:06:56]} Ngxe5 {[%emt 0:01:35]} 18. Be2 {[%emt 0:00:17]} Ba6 {[%emt 0:07:12]} 19. Nf2 {[%emt 0:05:16]} Bxe2 {[%emt 0:02:08]} 20. Qxe2 {[%emt 0:00:27]} Qc5 {[%emt 0:00:45]} 21. O-O {[%emt 0:07:28]} Qxc3 {[%emt 0:02:41]} 22. Rfd1 {[%emt 0:00:10]} Qa3 {[%emt 0:03:26]} 23. Qc2 {[%emt 0:02:54]} Rfc8 {[%emt 0:02:45]} 24. Ra1 {[%emt 0:06:22]} Qc5 {[%emt 0:02:06]} 25. Qa2 {[%emt 0:00:21]} Qe7 {[%emt 0:06:10]} 26. Rac1 {[%emt 0:01:09]} h5 {[%emt 0:11:12]} 27. Qd2 {[%emt 0:01:28][%cal Od4c6]} c5 {[%emt 0:01:50]} 28. Nb5 {[%emt 0:00:37]} Nb6 {[%emt 0:00:53]} 29. Nc3 {[%emt 0:01:26]} c4 {[%emt 0:01:52]} 30. Rb1 {[%emt 0:02:02] [#]} (30. Qe3 $17 {might work better.} Ned7 31. g4) 30... Nd3 $1 $19 {[%emt 0:01:14]} 31. Rxb6 {[%emt 0:01:24] Black must now prevent Nd5.} (31. Nxd3 cxd3) 31... Bxc3 {[%emt 0:01:25]} (31... Nxf4 $142 32. Kh1 Rd8 33. Qxf4 Bxc3) 32. Qxc3 {[%emt 0:00:17]} Nxf4 {[%emt 0:00:04]} 33. Qe3 {[%emt 0:00:52] Prevents Ne2+.} (33. Kf1 {keeps fighting.}) 33... Qg5 {[%emt 0:01:28][%csl Gf4][%cal Rg5g2]} 34. Qf3 {[%emt 0:00:15][%cal Oh2h4]} c3 {[%emt 0:00:18] Strongly threatening ...c2.} 35. Rb5 {[%emt 0:00:19] [#]} Qh6 {[%emt 0:03:57] aiming for ...c2.} 36. Rf1 {[%emt 0:01:56]} (36. g3 $142 c2 37. gxf4 cxd1=N 38. Nxd1) 36... Ra7 {[%emt 0:00:02]} (36... c2 $142 37. Nh3 Nxh3+ 38. gxh3 Rc7) 37. Rbb1 {[%emt 0:00:37]} c2 {[%emt 0:02:29]} 38. Rbc1 {[%emt 0:00:07]} Rd7 {[%emt 0:00:26]} 39. g3 $2 {[%emt 0:01:00]} (39. Ng4 hxg4 40. Qxf4 Qxf4 41. Rxf4) 39... Ne6 {[%emt 0:00:23][%cal Bf4e6,Be6d4,Bd4f3][%mdl 32]} 40. Kg2 {[%emt 0:00:00]} Rd2 {[%emt 0:00:00] Threatens to win with ...Nd4.} 41. e5 {[%emt 0:09:14]} Nd4 {[%emt 0:05:17]} 42. Qb7 {[%emt 0:05:55]} Re8 {[%emt 0:07:40]} 43. Rce1 {[%emt 0:00:56]} Qg5 {[%emt 0:08:12]} 44. Kh1 {[%emt 0:01:17]} c1=Q {[%emt 0:03:40]} 45. e6 {[%emt 0:13:19] [#]} fxe6 {[%emt 0:04:47] ( -> ...Qc2)} 46. Ne4 {[%emt 0:00:19] [#] White wants to mate with Qf7+.} (46. Rxc1 Rxf2) 46... Nf3 $1 {[%emt 0:00:34][%csl Gf3][%cal Rd2h2]} 47. Qf7+ {[%emt 0:04:13]} (47. Nxd2 Qcxd2) 47... Kxf7 {[%emt 0:00:04][%csl Gf3][%cal Rd2h2]} 48. Nxg5+ {[%emt 0:00:16]} Kg8 {[%emt 0:00:10] Weighted Error Value: White=0.89/Black=0.56} 0-1

[Event "Croatian 1A League 2022"]
[Site "Porec"]
[Date "2022.09.29"]
[Round "6.7"]
[White "Donchenko, Alexander"]
[Black "Fedorchuk, Sergey A."]
[Result "1-0"]
[ECO "A25"]
[WhiteElo "2639"]
[BlackElo "2617"]
[Annotator "TA"]
[PlyCount "71"]
[EventDate "2022.09.24"]
[EventType "team-tourn"]
[EventCountry "CRO"]
[SourceTitle "playchess.com"]
[Source "ChessBase"]
[SourceQuality "1"]
[TimeControl "40/5400+30:1800+30"]

{[%evp 10,71,19,10,28,38,26,11,23,11,19,17,21,18,43,55,53,25,37,40,47,20,75,42,110,121,126,116,121,0,0,0,0,0,0,0,0,0,0,0,0,0,0,0,569,541,29983,29984,29984,29985,29985,29986,29986,29987,29987,29988,29988,29987,29995,29996,29996,1018,981,899]} 1. c4 {[%emt 0:00:02]} Nf6 {[%emt 0:05:05]} 2. g3 {[%emt 0:00:13]} e5 {[%emt 0:08:22]} 3. Bg2 {[%emt 0:00:17]} Nc6 {[%emt 0:00:45]} 4. Nc3 {[%emt 0:00:27]} Bc5 {[%emt 0:03:12]} 5. e3 {[%emt 0:00:18]} d6 {[%emt 0:00:11]} 6. Nge2 {[%emt 0:00:29]} a6 {[%emt 0:00:17] A25: English Opening vs King's Indian with ...Nc6 but without early d3.} 7. O-O {[%emt 0:01:46]} O-O {[%emt 0:01:06]} 8. h3 {[%emt 0:01:26]} Ba7 {[%emt 0:01:26] The position is equal.} 9. Kh2 $5 {[%emt 0:06:11][%mdl 4] Leaves trodden paths.} Re8 {[%emt 0:11:41]} 10. b3 {[%emt 0:09:40]} Rb8 {[%emt 0:09:22]} 11. Bb2 {[%emt 0:14:05]} Bd7 {[%emt 0:01:16]} 12. Rc1 {[%emt 0:07:50] [#]} Ne7 $146 {[%emt 0:04:36]} ({Predecessor:} 12... h6 13. Nd5 Nxd5 14. cxd5 Nb4 15. d4 Nxa2 16. Ra1 Nb4 17. Ba3 c5 18. dxc6 bxc6 19. dxe5 dxe5 20. Bxb4 Rxb4 21. Rxa6 {½-½ (30) Donchenko,A (2614)-Christiansen,J (2525) Manavgat 2018}) 13. f4 {[%emt 0:05:02]} Bc6 {[%emt 0:16:40]} 14. e4 {[%emt 0:01:36][%cal Be3e4,Be4d5][%mdl 32]} exf4 {[%emt 0:00:20]} 15. Nd5 {[%emt 0:07:29]} Bxd5 {[%emt 0:12:55]} (15... Nfxd5 $1 $11 {remains equal.} 16. exd5 Bd7) 16. exd5 {[%emt 0:05:33]} fxg3+ {[%emt 0:00:30]} (16... Nh5 $14) 17. Nxg3 $16 {[%emt 0:00:07]} Nd7 {[%emt 0:00:04]} 18. Qh5 {[%emt 0:04:44]} Ng6 {[%emt 0:02:09] [#]} 19. Rxf7 {[%emt 0:16:02] White has more active pieces.} Kxf7 $11 {[%emt 0:01:37]} 20. Qxh7 {[%emt 0:00:14][%csl Gb2][%cal Rh7g7]} Qf6 {[%emt 0:16:24]} 21. Bxf6 $40 {[%emt 0:00:34][%mdl 128] White has some attack.} Nxf6 {[%emt 0:00:04]} 22. Rf1 {[%emt 0:00:06] Threatening mate with Nh5.} Rh8 {[%emt 0:00:03]} 23. Rxf6+ $1 {[%emt 0:00:10]} Kxf6 {[%emt 0:00:06]} 24. Nh5+ {[%emt 0:09:08]} Kg5 {[%emt 0:00:04]} 25. Qxg7 {[%emt 0:00:05] Dancing on a razor blade.} ({Don't go for} 25. h4+ $2 Nxh4 26. Qxg7+ Kxh5 $19) 25... Kxh5 {[%emt 0:00:24]} 26. Be4 $1 {[%emt 0:07:11]} Ne5 {[%emt 0:00:35][%mdl 8192] [#]} (26... Rbg8 $1 $11 27. Qf7 (27. Bxg6+ Kg5 $11) 27... Bb6) 27. Bc2 $1 $18 {[%emt 0:01:46] Bd1+ would kill now.} Nf3+ {[%emt 0:03:33]} 28. Kh1 {[%emt 0:00:01]} Rhg8 {[%emt 0:01:06]} 29. Qh7+ {[%emt 0:01:00]} Kg5 {[%emt 0:00:06]} 30. Qf5+ {[%emt 0:00:02]} Kh6 {[%emt 0:00:37]} 31. Qf6+ {[%emt 0:00:05]} Kh5 {[%emt 0:00:14]} 32. Qxf3+ {[%emt 0:00:03]} Kg5 {[%emt 0:00:18]} 33. Qg4+ {[%emt 0:00:33]} Kh6 {[%emt 0:00:20]} 34. Qh4+ {[%emt 0:00:06]} Kg7 {[%emt 0:00:04]} 35. Qg5+ {[%emt 0:00:08]} (35. Qe7+ $142 Kh6 36. Qf6+ Kh5 37. Bd1+ Rg4 38. hxg4#) 35... Kf7 {[%emt 0:00:04]} 36. Qf5+ {[%emt 0:00:09] Weighted Error Value: White=0.07 (flawless) /Black=0.40} 1-0

[Event "Croatian 1A League 2022"]
[Site "Porec"]
[Date "2022.09.29"]
[Round "6.8"]
[White "Bernadskiy, Vitaliy"]
[Black "Livaic, Leon"]
[Result "1/2-1/2"]
[ECO "D39"]
[WhiteElo "2558"]
[BlackElo "2565"]
[Annotator "TA"]
[PlyCount "105"]
[EventDate "2022.09.24"]
[EventType "team-tourn"]
[EventCountry "CRO"]
[SourceTitle "playchess.com"]
[Source "ChessBase"]
[SourceQuality "1"]
[TimeControl "40/5400+30:1800+30"]

{[%evp 15,105,15,18,17,31,15,35,0,25,13,0,0,0,0,0,-20,-29,-24,0,0,0,0,0,0,0,0,0,0,0,0,-2,-6,0,0,0,0,0,0,0,0,0,0,0,-8,0,0,0,0,0,0,0,0,33,33,33,33,33,33,33,16,18,11,20,13,14,11,18,18,18,18,18,18,18,18,18,18,18,8,8,8,8,8,8,8,8,0,0,0,8,8,8,8]} 1. d4 {[%emt 0:00:03]} Nf6 {[%emt 0:00:07]} 2. c4 {[%emt 0:00:45]} e6 {[%emt 0:00:05]} 3. Nf3 {[%emt 0:00:19]} d5 {[%emt 0:00:06]} 4. Nc3 {[%emt 0:00:03]} dxc4 {[%emt 0:03:43]} 5. e4 {[%emt 0:00:43]} Bb4 {[%emt 0:00:09]} 6. Bg5 {[%emt 0:00:04]} h6 {[%emt 0:00:19]} 7. Bxf6 {[%emt 0:00:08]} Qxf6 {[%emt 0:00:04]} 8. Bxc4 {[%emt 0:00:11]} c5 {[%emt 0:01:28]} 9. O-O {[%emt 0:00:31] D39: Queen's Gambit Declined: Ragozin Defence with 5 Bg5 dxc4.} cxd4 {[%emt 0:00:57]} 10. e5 {[%emt 0:00:07]} (10. Nb5 $5 {[%cal Rb5c7]} Qe7 11. Nbxd4 $11 (11. a3 Bc5 $11)) 10... Qd8 {[%emt 0:00:04]} 11. Ne4 {[%emt 0:00:03][%mdl 1024] White has compensation. White is slightly better.} (11. Nxd4 $5 {[%cal Rd1a4]} O-O 12. Rc1 $14) 11... O-O {[%emt 0:02:54]} 12. Qe2 {[%emt 0:00:05]} ({But not} 12. Nxd4 Qc7 13. Qe2 Qxe5 $15) 12... Be7 {[%emt 0:00:08]} 13. Rad1 {[%emt 0:01:09]} Qc7 {[%emt 0:04:39]} 14. Ng3 {[%emt 0:02:26]} ({Much weaker is} 14. Rxd4 Nc6 15. Rd2 Nxe5 16. Nxe5 Qxe5 $15) 14... Rd8 {[%emt 0:00:32] [#]} 15. a3 $146 {[%emt 0:08:29]} ({Predecessor:} 15. Nh5 g6 16. Nf4 Nc6 17. Qe4 Bf8 18. h4 Bg7 19. Rfe1 Bd7 20. Bd3 Be8 21. Bb1 {½-½ (31) Moiseenko,A (2671)-Meier,G (2644) Jerusalem 2017}) 15... Bd7 {[%emt 0:12:03]} 16. Rfe1 {[%emt 0:13:36]} Ba4 {[%emt 0:09:19]} 17. Rxd4 {[%emt 0:08:46]} Rxd4 {[%emt 0:00:15]} ({Much less strong is} 17... Nc6 18. Rg4 $16) 18. Nxd4 {[%emt 0:00:10] Threatens to win with Nh5.} Nc6 {[%emt 0:27:04]} 19. Nxe6 {[%emt 0:06:41]} fxe6 {[%emt 0:00:05]} 20. Qe4 {[%emt 0:00:01] Prevents Nd4.} Qxe5 {[%emt 0:03:34]} 21. Qxe5 {[%emt 0:00:59]} Nxe5 {[%emt 0:00:04]} 22. Rxe5 {[%emt 0:00:03]} Kf8 {[%emt 0:06:38]} 23. Rxe6 {[%emt 0:03:59]} Rd8 {[%emt 0:06:36]} 24. Re1 {[%emt 0:07:06]} Rd2 {[%emt 0:05:25]} 25. b4 {[%emt 0:00:43]} b6 {[%emt 0:05:14]} 26. h3 {[%emt 0:08:07]} Rc2 {[%emt 0:04:05]} 27. Bd5 {[%emt 0:02:05]} Rd2 {[%emt 0:02:25]} 28. Bc4 {[%emt 0:02:51]} Rc2 {[%emt 0:00:12]} 29. Be6 {[%emt 0:00:14]} a5 {[%emt 0:01:03]} 30. Nf5 {[%emt 0:06:06]} Bf6 {[%emt 0:00:07]} 31. Ne3 {[%emt 0:02:02]} Rc3 {[%emt 0:00:31]} 32. Nd5 {[%emt 0:00:42] [#] bxa5 is the strong threat.} Rxa3 {[%emt 0:00:07]} 33. Rc1 {[%emt 0:00:14] Hoping for Rc8+.} Ra1 {[%emt 0:03:39]} 34. Rxa1 {[%emt 0:00:06]} Bxa1 {[%emt 0:00:02] This bishop pair is nice.} 35. Nxb6 $14 {[%emt 0:00:06][%mdl 4096] Endgame KBB-KBN} Bb5 {[%emt 0:00:02]} 36. bxa5 {[%emt 0:00:58] Strongly threatening Bc4.} Bc3 {[%emt 0:00:20]} 37. Bb3 {[%emt 0:01:24]} Bxa5 {[%emt 0:00:05] The position is equal.} 38. Nd5 {[%emt 0:00:02]} Bc6 {[%emt 0:02:25]} 39. Ne3 {[%emt 0:01:08]} Bb6 {[%emt 0:00:55]} 40. g4 {[%emt 0:00:00]} Bxe3 {[%emt 0:00:00]} 41. fxe3 $11 {[%emt 0:00:21] KB-KB} Ke7 {[%emt 0:01:29]} 42. Kf2 {[%emt 0:00:03]} g5 {[%emt 0:00:33]} 43. Bd1 {[%emt 0:00:33]} Kf6 {[%emt 0:00:06]} 44. Bf3 {[%emt 0:00:11]} Bb5 {[%emt 0:00:43]} 45. Kg3 {[%emt 0:00:06]} Ke5 {[%emt 0:00:26]} 46. h4 {[%emt 0:00:13]} gxh4+ {[%emt 0:03:14]} 47. Kxh4 {[%emt 0:00:14]} Kf6 {[%emt 0:00:03]} 48. Be4 {[%emt 0:00:46]} Be8 {[%emt 0:00:15]} 49. Bf5 {[%emt 0:00:16]} h5 {[%emt 0:00:23]} 50. e4 {[%emt 0:00:20]} hxg4 {[%emt 0:00:03]} 51. Kxg4 {[%emt 0:00:02]} Bc6 {[%emt 0:00:05]} 52. Kf4 {[%emt 0:00:05]} Bxe4 {[%emt 0:00:02]} 53. Kxe4 {[%emt 0:00:04] Weighted Error Value: White=0.04 (flawless) /Black=0.03 (flawless)} 1/2-1/2